bitfinex/quotes_SOLUSD_20260109
["timestamp","ask_amount","ask_price","bid_price","bid_amount"]
[1767976400181,7.71366907,139.85,139.81,0.7109504]
[1767976400376,7.04910147,139.84,139.8,7.15301688]
[1767976400580,7.04910147,139.84,139.8,20.21301688]
[1767976400781,7.04910147,139.84,139.8,20.92396728]
[1767976401594,7.815122,139.85,139.8,20.92396728]
[1767976401898,14.86422347,139.85,139.8,20.92396728]
[1767976402782,7.81523046,139.85,139.8,27.97306875]
[1767976402986,14.86433193,139.85,139.8,27.97306875]
[1767976403675,7.71366907,139.85,139.8,27.97306875]
[1767976404095,0.6645676,139.85,139.81,7.76005187]
[1767976404280,7.81422817,139.87,139.83,7.76005187]
[1767976404893,7.81422817,139.87,139.82,7.04910147]
[1767976405202,7.81422817,139.87,139.82,0.7109504]
[1767976405505,7.81422817,139.87,139.82,7.76005187]
[1767976406500,7.81422817,139.87,139.82,14.91201042]
[1767976407077,7.81422817,139.87,139.82,7.76005187]
[1767976407401,7.81422817,139.87,139.79,20.10910147]
[1767976407402,0.6645676,139.83,139.79,20.10910147]
[1767976407704,0.6645676,139.83,139.79,13.06]
[1767976408196,0.6645676,139.83,139.78,14.91387046]
[1767976408197,0.6645676,139.82,139.78,14.91387046]
[1767976408388,0.6645676,139.82,139.78,20.82005187]
[1767976408578,0.6645676,139.82,139.78,13.7709504]
[1767976409301,0.6645676,139.82,139.74,20.98815714]
[1767976409302,0.6645676,139.79,139.74,0.7109504]
[1767976409504,0.6645676,139.79,139.74,27.97586323]
[1767976409704,0.6645676,139.77,139.73,7.15643417]
[1767976410009,7.71366907,139.77,139.72,27.97711493]
[1767976410294,0.6645676,139.76,139.72,20.82005187]
[1767976410481,0.6645676,139.76,139.72,13.7709504]
[1767976410691,0.6645676,139.76,139.72,13.06]
[1767976411002,7.71366907,139.76,139.72,13.06]
[1767976411209,14.86899144,139.76,139.72,13.06]
[1767976411419,7.71366907,139.75,139.72,13.06]
[1767976411706,7.71366907,139.75,139.7,7.868686]
[1767976411907,7.04910147,139.74,139.7,7.868686]
[1767976413703,7.8205349,139.75,139.7,7.868686]
[1767976413880,7.04910147,139.74,139.7,7.868686]
[1767976414081,17.88723437,139.77,139.71,0.69411622]
[1767976414082,0.68509743,139.77,139.71,0.69411622]
[1767976414375,30.94449254,139.79,139.71,0.69411622]
[1767976414376,7.7341989,139.79,139.74,0.69411622]
[1767976414576,7.7341989,139.79,139.72,20.80321769]
[1767976414577,0.68509743,139.77,139.72,20.80321769]
[1767976415001,0.68509743,139.77,139.73,0.69411622]
[1767976415206,7.04910147,139.78,139.73,0.69411622]
[1767976415387,14.20327015,139.78,139.73,7.85063564]
[1767976415699,7.04910147,139.78,139.73,7.85063564]
[1767976415905,7.04910147,139.78,139.74,0.69411622]
[1767976416401,14.20330873,139.78,139.74,0.69411622]
[1767976417198,7.04910147,139.75,139.7,0.69411622]
[1767976417386,7.04910147,139.74,139.71,13.75411622]
[1767976417586,7.04910147,139.72,139.69,0.69411622]
[1767976417784,7.04910147,139.72,139.64,0.81612718]
[1767976417785,7.04910147,139.71,139.67,7.85354981]
[1767976417980,7.04910147,139.71,139.68,0.69411622]
[1767976418505,0.68509743,139.73,139.68,0.69411622]
[1767976418696,7.04910147,139.71,139.68,7.85325282]
[1767976419286,25.04651937,139.74,139.69,7.85279009]
[1767976419287,7.04910147,139.72,139.69,7.85279009]
[1767976420301,7.04910147,139.72,139.69,0.69411622]
[1767976420685,7.04910147,139.7,139.67,0.69411622]
[1767976421297,7.04910147,139.69,139.67,0.69411622]
[1767976421623,7.04910147,139.69,139.66,13.75411622]
[1767976421624,14.20800182,139.69,139.66,13.75411622]
[1767976422105,7.04910147,139.68,139.64,0.1]
[1767976422401,7.04910147,139.68,139.62,7.33342461]
[1767976422402,7.7341989,139.65,139.6,13.06]
[1767976422604,7.04910147,139.65,139.6,13.06]
[1767976422789,0.68509743,139.67,139.6,13.06]
[1767976422986,7.04910147,139.65,139.6,20.10910147]
[1767976423179,7.04910147,139.65,139.6,13.06]
[1767976423402,7.04910147,139.65,139.6,20.10910147]
[1767976423903,14.21013421,139.65,139.6,20.10910147]
[1767976424113,14.21013421,139.65,139.61,0.37605386]
[1767976425396,7.04910147,139.64,139.61,0.37605386]
[1767976425799,7.16178471,139.63,139.6,13.06]
[1767976426112,14.21088618,139.63,139.6,13.06]
[1767976426285,7.04910147,139.63,139.6,13.06]
[1767976427610,14.21059249,139.64,139.6,13.43605386]
[1767976429204,7.16149102,139.64,139.6,13.43605386]
[1767976429812,7.7341989,139.65,139.6,20.48515533]
[1767976429813,7.84604943,139.65,139.6,20.48515533]
[1767976429993,14.8951509,139.65,139.6,20.48515533]
[1767976430618,19.25825531,139.65,139.6,24.87825973]
[1767976431214,11.44220587,139.64,139.6,13.43605386]
[1767976431411,11.44220587,139.64,139.6,75.33605386]
[1767976432406,18.60390215,139.64,139.6,75.33605386]
[1767976432716,18.60390215,139.64,139.58,0.60605385]
[1767976432717,11.44220587,139.61,139.58,0.60605385]
[1767976433416,11.44220587,139.62,139.58,0.60605385]
[1767976434501,7.16281068,139.61,139.58,0.60605385]
[1767976436019,7.16229766,139.62,139.58,0.60605385]
[1767976436218,19.30927761,139.62,139.58,0.60605385]
[1767976436609,11.44220587,139.61,139.58,0.2]
[1767976438913,18.60551929,139.61,139.58,0.2]
[1767976439435,11.44220587,139.6,139.58,0.2]
[1767976439715,11.44220587,139.6,139.58,1e-08]
[1767976439903,12.14697995,139.6,139.58,1e-08]
[1767976440100,0.70477408,139.6,139.58,1e-08]
[1767976440306,18.60551929,139.61,139.58,1e-08]
[1767976440522,11.44220587,139.59,139.58,1e-08]
[1767976440930,19.3108169,139.59,139.58,1e-08]
[1767976441310,19.3108169,139.59,139.52,13.84715248]
[1767976441311,0.70477408,139.58,139.52,0.40605385]
[1767976441512,11.44220587,139.57,139.52,0.40605385]
[1767976441821,11.44220587,139.57,139.53,0.40605385]
[1767976442121,12.14697995,139.56,139.51,13.48605385]
[1767976442304,12.14697995,139.56,139.52,0.40605385]
[1767976442815,11.44220587,139.54,139.5,0.40605385]
[1767976443009,7.16640389,139.54,139.5,0.40605385]
[1767976443227,7.1364039,139.54,139.5,0.40605385]
[1767976443404,18.57860977,139.54,139.5,0.40605385]
[1767976443606,11.41220588,139.53,139.49,0.40605385]
[1767976443835,11.38220589,139.53,139.49,0.40605385]
[1767976444014,12.10388887,139.51,139.46,11.44220587]
[1767976444221,0.63168301,139.5,139.46,0.43605384]
[1767976444417,0.60168302,139.5,139.46,0.43605384]
[1767976445110,7.77038589,139.5,139.46,0.43605384]
[1767976445312,19.21259176,139.5,139.46,0.43605384]
[1767976445516,11.44220587,139.48,139.44,0.56605383]
[1767976445918,11.44220587,139.49,139.44,0.56605383]
[1767976446117,11.44220587,139.49,139.44,12.0082597]
[1767976446625,12.10388887,139.49,139.44,0.56605383]
[1767976447229,19.27328487,139.49,139.44,0.56605383]
[1767976447431,0.661683,139.49,139.44,19.17973827]
[1767976447618,13.08,139.53,139.49,0.46605383]
[1767976447810,7.16589036,139.55,139.47,0.46605383]
[1767976447811,0.661683,139.51,139.47,0.46605383]
[1767976448438,0.661683,139.51,139.47,11.9082597]
[1767976449218,18.61010799,139.52,139.48,0.46605383]
[1767976449511,12.10388887,139.51,139.45,0.28432314]
[1767976449712,12.10388887,139.49,139.44,0.1]
[1767976450021,12.10388887,139.48,139.44,0.1]
[1767976450930,0.661683,139.48,139.44,11.54220587]
[1767976451136,0.661683,139.48,139.44,0.1]
[1767976451137,7.83141817,139.48,139.44,0.1]
[1767976451839,11.44220587,139.51,139.46,11.44220587]
[1767976452235,12.10388887,139.51,139.45,11.44220587]
[1767976452545,11.44220587,139.5,139.45,11.44220587]
[1767976452933,25.08780732,139.51,139.45,11.44220587]
[1767976453138,11.44220587,139.46,139.44,0.1]
[1767976453433,19.24473052,139.46,139.44,0.1]
[1767976454238,0.661683,139.46,139.44,0.1]
[1767976454627,7.8322122,139.46,139.44,0.1]
[1767976454936,0.661683,139.49,139.45,11.44220587]
[1767976455334,7.83081714,139.49,139.44,11.54220587]
[1767976456940,7.16854221,139.5,139.45,11.44220587]
[1767976457138,20.90985478,139.51,139.46,11.44220587]
[1767976457340,42.73605917,139.61,139.46,11.44220587]
[1767976457341,18.57672115,139.55,139.48,11.44220587]
[1767976457524,0.661683,139.53,139.48,11.44220587]
[1767976457729,0.661683,139.53,139.46,13.36432314]
[1767976458039,0.661683,139.51,139.46,24.80652901]
[1767976458238,0.661683,139.51,139.46,11.72652901]
[1767976459130,0.661683,139.51,139.46,18.89679544]
[1767976459329,0.661683,139.51,139.47,11.44220587]
[1767976459725,0.661683,139.5,139.45,24.52220587]
[1767976460230,18.6101844,139.51,139.44,0.1]
[1767976460231,0.661683,139.48,139.44,0.1]
[1767976460430,0.661683,139.47,139.44,0.1]
[1767976460946,11.44220587,139.48,139.44,0.1]
[1767976461145,19.27388958,139.47,139.44,0.1]
[1767976461434,12.10388887,139.46,139.44,0.1]
[1767976461842,11.44220587,139.45,139.44,0.1]
[1767976462346,12.10388887,139.46,139.44,0.1]
[1767976462549,12.10388887,139.45,139.44,1e-08]
[1767976463343,19.27491791,139.45,139.44,1e-08]
[1767976463847,19.27491791,139.45,139.37,0.2]
[1767976463848,0.661683,139.44,139.37,0.2]
[1767976464026,12.10388887,139.4,139.37,0.2]
[1767976464861,12.10388887,139.39,139.37,1e-08]
[1767976465353,0.661683,139.38,139.37,1e-08]
[1767976465523,0.63168301,139.38,139.37,1e-08]
[1767976465724,7.17454713,139.39,139.37,1e-08]
[1767976465926,11.44220587,139.4,139.37,1e-08]
[1767976466133,18.61602827,139.4,139.37,1e-08]
[1767976466748,18.61602827,139.4,139.36,1e-08]
[1767976466749,11.44220587,139.38,139.36,1e-08]
[1767976467249,18.61734583,139.38,139.36,1e-08]
[1767976467452,19.27902883,139.38,139.36,1e-08]
[1767976467657,7.83682296,139.38,139.36,1e-08]
[1767976468651,0.661683,139.38,139.36,1e-08]
[1767976469732,7.83549369,139.4,139.36,1e-08]
[1767976469932,0.661683,139.39,139.36,1e-08]
[1767976470431,0.661683,139.38,139.36,1e-08]
[1767976470627,11.44220587,139.38,139.36,1e-08]
[1767976470833,11.44220587,139.37,139.36,1e-08]
[1767976471048,38.20781355,139.4,139.36,1e-08]
[1767976471249,11.44220587,139.37,139.36,1e-08]
[1767976471753,18.61735116,139.37,139.31,0.54432312]
[1767976471954,18.61735116,139.37,139.31,11.98652899]
[1767976472543,0.661683,139.36,139.31,19.16450028]
[1767976473564,7.83759716,139.36,139.31,11.98652899]
[1767976473729,0.69222039,139.35,139.31,11.82652901]
[1767976474332,0.69222039,139.35,139.31,11.54220587]
[1767976474532,0.69222039,139.34,139.31,0.1]
[1767976475057,12.13442626,139.34,139.31,0.1]
[1767976475259,0.69222039,139.32,139.3,0.1]
[1767976475431,25.11506456,139.36,139.3,0.1]
[1767976475432,11.44220587,139.35,139.3,0.1]
[1767976475636,0.69222039,139.34,139.3,0.1]
[1767976475863,0.69222039,139.33,139.3,0.1]
[1767976477342,12.13442626,139.33,139.3,0.1]
[1767976477545,25.11876504,139.34,139.29,1e-08]
[1767976477546,0.69222039,139.3,139.29,1e-08]
[1767976477744,19.31317715,139.3,139.29,1e-08]
[1767976478660,0.69222039,139.29,139.25,0.2]
[1767976479166,0.69222039,139.28,139.25,0.2]
[1767976479747,19.3145946,139.28,139.25,0.2]
[1767976480257,0.69222039,139.27,139.22,0.4351601]
[1767976480460,0.69222039,139.26,139.22,0.4351601]
[1767976480764,0.6622204,139.26,139.22,11.87736597]
[1767976481962,0.6622204,139.26,139.22,19.0601457]
[1767976482461,0.6622204,139.26,139.23,11.44220587]
[1767976482864,0.6622204,139.26,139.22,7.9079398]
[1767976482865,0.6622204,139.26,139.22,0.71948324]
[1767976483046,7.8432303,139.26,139.22,0.4351601]
[1767976483549,7.8432303,139.26,139.22,11.87736597]
[1767976483751,7.8432303,139.26,139.22,0.4351601]
[1767976483956,7.1810099,139.26,139.22,0.72516007]
[1767976484438,0.69222039,139.25,139.22,0.4351601]
[1767976484644,12.13442626,139.23,139.22,1e-08]
[1767976485349,0.69222039,139.22,139.19,0.2]
[1767976485646,11.44220587,139.23,139.17,0.38999997]
[1767976485647,0.69222039,139.19,139.17,1e-08]
[1767976485967,7.18545663,139.17,139.13,0.28999997]
[1767976486150,32.41988289,139.17,139.11,18.92045165]
[1767976486344,20.97767702,139.17,139.11,11.73220584]
[1767976486539,11.44220587,139.16,139.11,11.73220584]
[1767976486945,11.44220587,139.16,139.11,18.92074807]
[1767976487277,11.44220587,139.16,139.11,0.28999997]
[1767976487278,12.13442626,139.16,139.11,0.28999997]
[1767976487760,49.69130408,139.17,139.11,18.92072818]
[1767976487956,49.69130408,139.17,139.11,0.28999997]
[1767976487957,12.13442626,139.16,139.11,0.28999997]
[1767976488149,12.13442626,139.16,139.11,7.4784014]
[1767976488352,12.13442626,139.16,139.11,18.92060727]
[1767976488558,32.42053989,139.16,139.11,11.73220584]
[1767976489063,19.32053989,139.16,139.11,11.73220584]
[1767976489254,20.97833402,139.16,139.11,18.92062803]
[1767976489457,20.97833402,139.16,139.11,11.73220584]
[1767976489660,12.15792267,139.15,139.09,19.20600485]
[1767976489858,12.15792267,139.15,139.1,0.28999997]
[1767976490251,7.18700589,139.14,139.1,0.28999997]
[1767976490448,7.90241328,139.15,139.1,7.4789456]
[1767976490649,14.99458172,139.15,139.1,7.4789456]
[1767976490850,20.28615658,139.16,139.12,0.28999997]
[1767976491058,27.37832502,139.16,139.12,0.28999997]
[1767976491370,28.09404182,139.16,139.1,7.4789456]
[1767976491665,86.14682097,139.29,139.11,0.28999997]
[1767976491666,25.86497489,139.17,139.11,0.28999997]
[1767976491968,20.90788524,139.16,139.11,0.28999997]
[1767976492473,28.09398643,139.16,139.11,0.28999997]
[1767976493777,28.09398643,139.16,139.11,7.47849413]
[1767976494355,28.09398643,139.16,139.11,0.28999997]
[1767976494970,21.00181799,139.16,139.11,0.28999997]
[1767976495278,28.09398643,139.16,139.11,7.47852633]
[1767976495570,13.12,139.16,139.12,7.38216841]
[1767976495773,20.30626796,139.16,139.12,7.38216841]
[1767976495969,13.12,139.16,139.12,7.38216841]
[1767976496355,13.12,139.16,139.12,0.28999997]
[1767976496760,13.12,139.16,139.12,7.47792721]
[1767976496954,0.7157168,139.19,139.14,7.38216841]
[1767976497163,7.18339199,139.21,139.13,0.28432314]
[1767976497164,0.7157168,139.2,139.16,7.09216844]
[1767976497673,0.7157168,139.2,139.17,7.09216844]
[1767976497976,0.7157168,139.2,139.16,7.09216844]
[1767976498175,0.7157168,139.2,139.15,7.09216844]
[1767976498381,0.7157168,139.17,139.12,7.18792724]
[1767976498559,0.7157168,139.17,139.13,0.28999997]
[1767976498877,7.1854753,139.17,139.13,0.28999997]
[1767976499273,14.2772968,139.18,139.13,14.56966009]
[1767976499584,28.1130136,139.18,139.14,0.28999997]
[1767976499776,7.80788524,139.17,139.11,7.66649155]
[1767976499957,0.7157168,139.16,139.11,7.76258534]
[1767976500278,0.7157168,139.16,139.12,7.38216841]
[1767976500456,0.7157168,139.16,139.12,7.09216844]
[1767976500658,0.7157168,139.16,139.11,7.66649155]
[1767976500867,20.21216844,139.17,139.12,14.57017348]
[1767976501065,20.92788524,139.17,139.12,14.57017348]
[1767976501266,0.7157168,139.17,139.12,14.57017348]
[1767976501476,7.90128533,139.17,139.12,14.57017348]
[1767976501660,14.99345377,139.17,139.12,14.57017348]
[1767976501860,0.7157168,139.17,139.12,14.57017348]
[1767976502283,0.7157168,139.17,139.12,7.47800504]
[1767976502471,0.7157168,139.17,139.12,14.57017348]
[1767976502677,0.7157168,139.17,139.13,7.09216844]
[1767976502881,0.71877993,139.23,139.17,0.28999997]
[1767976503057,0.71877993,139.23,139.2,7.09216844]
[1767976503263,0.71877993,139.25,139.2,7.38216841]
[1767976503980,0.71877993,139.25,139.21,7.09216844]
[1767976504278,0.71877993,139.24,139.19,7.09216844]
[1767976504660,0.71877993,139.24,139.2,14.27592271]
[1767976504862,0.71877993,139.24,139.2,7.09216844]
[1767976506068,0.71877993,139.24,139.2,14.27592371]
[1767976506767,0.71877993,139.26,139.22,7.09216844]
[1767976506967,0.71877993,139.26,139.22,7.38216841]
[1767976507787,0.71877993,139.25,139.21,7.37649158]
[1767976508364,0.71877993,139.25,139.21,7.09216844]
[1767976508994,0.71877993,139.25,139.19,0.28432314]
[1767976508995,0.71877993,139.24,139.19,0.28432314]
[1767976509200,0.71877993,139.22,139.18,7.1847899]
[1767976509490,0.71877993,139.23,139.18,7.09216844]
[1767976509676,0.71877993,139.23,139.19,7.09216844]
[1767976510185,0.71877993,139.23,139.19,14.2762708]
[1767976510379,13.83877993,139.25,139.2,14.27590955]
[1767976510578,0.71877993,139.29,139.24,14.06227911]
[1767976510768,0.71877993,139.3,139.26,7.09216844]
[1767976511084,0.71877993,139.3,139.27,7.09216844]
[1767976511465,0.71877993,139.3,139.25,0.28999997]
[1767976511883,0.71877993,139.3,139.24,0.57432311]
[1767976512088,0.71877993,139.29,139.24,7.37649158]
[1767976512394,0.71877993,139.29,139.24,14.84797552]
[1767976512588,0.71877993,139.26,139.22,7.18257434]
[1767976512895,7.81094837,139.26,139.22,7.18257434]
[1767976513490,7.81094837,139.26,139.21,14.56534273]
[1767976513793,7.81094837,139.26,139.22,7.18284082]
[1767976513980,0.71877993,139.26,139.22,7.18284082]
[1767976514189,7.81094837,139.26,139.22,7.18284082]
[1767976514698,0.71877993,139.24,139.19,7.18421207]
[1767976514896,0.71877993,139.23,139.19,7.18421207]
[1767976515099,0.71877993,139.23,139.2,7.18388552]
[1767976515414,7.81094837,139.25,139.21,7.18333512]
[1767976515783,0.71877993,139.25,139.21,7.18333512]
[1767976515995,7.09216844,139.26,139.21,14.56550353]
[1767976516297,14.99182892,139.26,139.21,7.47333509]
[1767976516475,0.71877993,139.24,139.2,7.18368541]
[1767976519107,7.90073235,139.24,139.19,14.56646021]
[1767976519286,14.99290079,139.24,139.19,7.47429177]
[1767976519818,7.81094837,139.24,139.19,7.47429177]
[1767976519988,0.71877993,139.24,139.19,7.47429177]
[1767976520300,20.93094837,139.27,139.22,0.28999997]
[1767976520704,20.93094837,139.27,139.23,7.18236012]
[1767976521097,0.71877993,139.27,139.23,7.18236012]
[1767976521511,0.71877993,139.27,139.23,14.27452856]
[1767976521691,7.81094837,139.27,139.23,7.18236012]
[1767976522411,0.71877993,139.26,139.23,7.18236012]
[1767976522628,0.71877993,139.26,139.21,7.18307124]
[1767976522629,7.81094837,139.25,139.21,7.18307124]
[1767976523325,0.71877993,139.24,139.2,7.1837976]
[1767976523815,7.81094837,139.24,139.2,7.1837976]
[1767976524117,0.71877993,139.24,139.17,0.28999997]
[1767976524288,7.81094837,139.21,139.16,0.28999997]
[1767976524486,7.81094837,139.21,139.18,7.18464673]
[1767976524688,7.81094837,139.21,139.17,7.18545663]
[1767976525193,0.71877993,139.21,139.17,7.18545663]
[1767976525617,7.81094837,139.21,139.17,7.18545663]
[1767976526107,7.81094837,139.19,139.16,0.28999997]
[1767976526411,7.18340978,139.21,139.09,35.94719035]
[1767976526412,0.71877993,139.17,139.12,18.25950739]
[1767976526604,0.71877993,139.17,139.13,7.18752246]
[1767976527318,0.71877993,139.19,139.14,7.09216844]
[1767976528515,7.81094837,139.18,139.15,7.18648939]
[1767976528816,0.71877993,139.18,139.15,7.18648939]
[1767976530411,31.07784581,139.22,139.17,0.28999997]
[1767976530412,0.71877993,139.22,139.17,0.28999997]
[1767976530604,0.71877993,139.2,139.15,7.66649155]
[1767976530795,7.81094837,139.2,139.15,0.57432311]
[1767976531115,0.71877993,139.2,139.15,7.66649155]
[1767976531490,7.09216844,139.21,139.16,0.28999997]
[1767976531695,7.09216844,139.22,139.16,7.38216841]
[1767976531895,0.71877993,139.22,139.17,7.38216841]
[1767976532116,0.71877993,139.22,139.18,7.09216844]
[1767976532301,0.71877993,139.22,139.17,7.38216841]
[1767976532710,7.81094837,139.21,139.16,17.96424601]
[1767976533012,13.12,139.26,139.17,32.24115077]
[1767976533013,7.78239321,139.22,139.17,32.24115077]
[1767976533211,7.09216844,139.23,139.18,0.28999997]
[1767976533396,0.69022477,139.22,139.17,32.24115077]
[1767976533718,0.69022477,139.22,139.17,25.4389823]
[1767976534012,0.69022477,139.22,139.17,32.53115074]
[1767976534308,7.78239321,139.22,139.17,25.4389823]
[1767976534515,7.78239321,139.2,139.17,7.18534075]
[1767976534716,7.78239321,139.2,139.16,7.18597298]
[1767976535413,0.69022477,139.18,139.15,7.18645538]
[1767976536388,0.69022477,139.18,139.14,7.18700589]
[1767976536593,0.69022477,139.18,139.14,32.24668906]
[1767976537405,0.69022477,139.18,139.14,25.15452062]
[1767976537695,0.69022477,139.18,139.15,7.09216844]
[1767976538113,0.69022477,139.19,139.15,7.09216844]
[1767976538323,0.69022477,139.21,139.17,14.27762507]
[1767976539204,0.69022477,139.21,139.17,32.24126665]
[1767976541318,0.69022477,139.2,139.17,7.18545663]
[1767976541999,7.09216844,139.22,139.17,32.92236053]
[1767976542222,7.09216844,139.23,139.17,32.92236053]
[1767976542598,7.09216844,139.22,139.17,25.83019209]
[1767976542799,7.09216844,139.22,139.16,7.47001722]
[1767976543001,7.09216844,139.19,139.13,20.89326232]
[1767976543224,7.09216844,139.18,139.13,20.89326232]
[1767976543525,7.09216844,139.18,139.15,7.18621223]
[1767976543727,7.09216844,139.19,139.15,7.18621223]
[1767976543918,7.09216844,139.18,139.15,7.18621223]
[1767976544119,7.09216844,139.18,139.14,0.14216157]
[1767976544120,7.78239321,139.18,139.16,7.18596613]
[1767976544326,0.69022477,139.2,139.16,7.18596613]
[1767976544620,7.78239321,139.19,139.16,7.18596613]
[1767976544799,0.69022477,139.19,139.15,7.18648939]
[1767976545002,7.78239321,139.19,139.15,7.18648939]
[1767976545330,7.18339928,139.21,139.15,7.18648939]
[1767976545497,7.18339928,139.21,139.15,7.86758327]
[1767976545705,7.09216844,139.19,139.15,7.86758327]
[1767976545904,7.18339928,139.21,139.15,7.86758327]
[1767976546118,7.09216844,139.19,139.15,7.86758327]
[1767976546319,17.9559003,139.23,139.15,7.86758327]
[1767976546518,7.09216844,139.2,139.15,7.86758327]
[1767976546713,17.9559003,139.23,139.15,7.86758327]
[1767976546922,7.09216844,139.2,139.15,14.95975171]
[1767976547225,17.9559003,139.23,139.15,14.95975171]
[1767976547426,7.78239321,139.2,139.15,14.95975171]
[1767976547728,7.18306638,139.22,139.15,32.9259752]
[1767976547926,7.09216844,139.2,139.15,7.86758327]
[1767976548802,7.09216844,139.2,139.15,14.95975171]
[1767976549025,25.13645503,139.24,139.16,7.75427041]
[1767976549207,7.09216844,139.21,139.16,7.75427041]
[1767976549619,0.099,139.2,139.16,0.66210197]
[1767976549928,7.09216844,139.21,139.16,0.66210197]
[1767976550505,11.51529757,139.21,139.17,7.18545663]
[1767976551630,7.18313678,139.22,139.17,7.18545663]
[1767976551834,0.44032572,139.21,139.17,7.18545663]
[1767976552628,0.099,139.2,139.16,7.18597298]
[1767976552820,0.099,139.2,139.15,7.18634759]
[1767976553007,7.18368783,139.21,139.14,7.84887445]
[1767976553008,11.95221003,139.19,139.14,7.84887445]
[1767976553212,11.95221003,139.19,139.15,7.18641925]
[1767976553835,0.43691246,139.19,139.15,7.84852122]
[1767976554014,11.95221003,139.19,139.15,7.84852122]
[1767976554411,19.13983933,139.2,139.16,0.66210197]
[1767976555233,18.69951361,139.2,139.16,0.66210197]
[1767976555617,20.40256431,139.21,139.16,0.66210197]
[1767976555825,24.63529757,139.21,139.16,12.17739954]
[1767976556018,24.63529757,139.21,139.17,0.66210197]
[1767976556425,31.81880217,139.21,139.17,0.66210197]
[1767976556635,20.3035046,139.21,139.17,0.66210197]
[1767976556933,31.81880217,139.21,139.17,0.66210197]
[1767976557139,20.3035046,139.21,139.17,0.66210197]
[1767976557341,31.81880217,139.21,139.17,0.66210197]
[1767976557713,18.69837876,139.22,139.18,0.66210197]
[1767976558320,24.63529757,139.23,139.18,0.66210197]
[1767976558619,24.63529757,139.23,139.19,0.66210197]
[1767976558620,31.81782484,139.23,139.19,0.66210197]
[1767976558829,13.12,139.23,139.19,0.66210197]
[1767976559225,13.12,139.23,139.2,0.66210197]
[1767976559735,19.13764916,139.24,139.2,0.66210197]
[1767976559943,19.13764916,139.24,139.2,7.84589941]
[1767976560149,7.18145634,139.25,139.2,7.84589941]
[1767976560316,0.44032572,139.32,139.25,0.66210197]
[1767976560516,29.99991318,139.3,139.26,0.66210197]
[1767976560741,13.12,139.3,139.26,12.17739954]
[1767976560957,0.2,139.31,139.27,12.17739954]
[1767976561128,11.95221003,139.3,139.25,0.66210197]
[1767976561322,0.43691246,139.3,139.26,0.66210197]
[1767976561638,11.71529757,139.31,139.27,7.84215523]
[1767976561849,18.89359448,139.31,139.27,0.66210197]
[1767976562338,11.71529757,139.31,139.27,7.84238842]
[1767976562932,0.2,139.31,139.28,0.72249656]
[1767976563337,11.9488647,139.3,139.26,62.62249656]
[1767976563521,7.37870891,139.31,139.26,69.80330275]
[1767976563717,7.37870891,139.31,139.27,0.72249656]
[1767976564264,18.89400648,139.31,139.27,0.72249656]
[1767976564726,11.71529757,139.31,139.27,7.90277824]
[1767976565065,0.2,139.34,139.31,0.72249656]
[1767976565227,0.099,139.37,139.33,11.51529757]
[1767976565957,0.099,139.37,139.33,19.4149156]
[1767976566348,32.44994337,139.39,139.33,19.4149156]
[1767976566541,11.61429757,139.38,139.33,19.4149156]
[1767976566749,0.10237912,139.36,139.33,7.17712147]
[1767976566937,11.95562329,139.38,139.33,7.17712147]
[1767976567139,11.95562329,139.38,139.33,19.3549156]
[1767976567469,0.099,139.37,139.33,7.83961803]
[1767976567661,11.61429757,139.37,139.32,7.90004599]
[1767976567962,11.61429757,139.37,139.33,7.17709682]
[1767976568159,11.61429757,139.37,139.33,7.11709682]
[1767976568656,7.17472312,139.38,139.3,7.46291421]
[1767976568657,11.61767669,139.35,139.3,7.46291421]
[1767976568843,11.61429757,139.35,139.3,7.90108763]
[1767976569047,11.51529757,139.34,139.3,0.72249656]
[1767976569634,11.51529757,139.34,139.3,7.90124602]
[1767976570258,11.51529757,139.33,139.3,0.72249656]
[1767976570641,11.51529757,139.34,139.3,7.9012207]
[1767976571355,18.7907833,139.35,139.3,0.72249656]
[1767976571553,18.6922526,139.34,139.3,0.72249656]
[1767976571859,18.7912526,139.34,139.29,7.90168311]
[1767976572065,18.7912526,139.34,139.29,19.41698068]
[1767976572548,18.7912526,139.34,139.29,7.90168311]
[1767976572857,11.51529757,139.34,139.3,0.72249656]
[1767976573065,7.27535169,139.35,139.3,19.41629388]
[1767976573249,18.79064926,139.35,139.3,19.41629388]
[1767976573561,7.17635169,139.35,139.31,0.72249656]
[1767976573860,24.71429757,139.36,139.31,19.41580515]
[1767976574058,24.71429757,139.36,139.31,12.23779413]
[1767976574255,24.71429757,139.36,139.31,0.72249656]
[1767976574839,13.199,139.36,139.31,19.41595287]
[1767976575065,24.71429757,139.36,139.31,19.41595287]
[1767976575456,24.71429757,139.36,139.32,0.72249656]
[1767976576465,24.71429757,139.36,139.28,0.86465813]
[1767976576466,0.10237912,139.34,139.28,0.86465813]
[1767976576648,11.51529757,139.34,139.3,7.90091207]
[1767976576853,11.51529757,139.35,139.31,0.72249656]
[1767976577254,24.61529757,139.35,139.31,0.72249656]